bitfinex/quotes_ETHUSD_20251120
["timestamp","ask_amount","ask_price","bid_price","bid_amount"]
[1763641918644,3.30769774,3023.3,3023.0,0.001]
[1763641918941,0.112,3023.1,3023.0,0.001]
[1763641919306,0.112,3023.1,3023.0,0.9442]
[1763641919520,0.112,3023.1,3023.0,4.25217221]
[1763641919723,0.112,3023.1,3023.0,5.62378595]
[1763641920214,0.1112,3023.1,3023.0,5.62378595]
[1763641920631,0.1112,3023.1,3023.0,1.84481374]
[1763641920845,0.1112,3023.1,3023.0,4.25217221]
[1763641921541,0.1112,3023.1,3023.0,0.9442]
[1763641921725,0.1847,3023.1,3023.0,0.001]
[1763641922240,0.1112,3023.1,3023.0,0.4732]
[1763641923525,0.1112,3023.1,3023.0,0.001]
[1763641923845,0.1847,3023.1,3023.0,0.001]
[1763641924140,0.1112,3023.1,3023.0,0.4732]
[1763641924730,0.1112,3023.1,3023.0,0.9442]
[1763641925044,0.8887243,3023.8,3023.0,0.9442]
[1763641925045,0.30909346,3023.4,3023.0,14.20158386]
[1763641925243,0.112,3023.7,3023.6,0.1841]
[1763641925449,0.112,3023.7,3023.6,4.91779193]
[1763641925651,0.112,3023.7,3023.6,5.38999193]
[1763641925845,0.3409,3023.7,3023.6,4.73369193]
[1763641926252,0.65018851,3023.7,3023.6,4.73369193]
[1763641926722,0.65018851,3023.7,3023.4,3.30743636]
[1763641926723,0.42128851,3023.7,3023.4,3.30743636]
[1763641927255,0.112,3023.7,3023.4,3.77843636]
[1763641927432,0.42128851,3023.7,3023.4,3.77843636]
[1763641927853,0.42128851,3023.7,3023.6,0.4722]
[1763641928033,0.112,3023.7,3023.6,0.4722]
[1763641928238,0.112,3023.7,3023.6,0.9506]
[1763641928438,0.112,3023.7,3023.6,0.4722]
[1763641929261,0.112,3023.7,3023.3,3.97008575]
[1763641929440,0.15334008,3023.7,3023.3,0.1841]
[1763641930441,0.42128851,3023.7,3023.2,3.30771611]
[1763641930676,0.42128851,3023.7,3023.3,0.97105745]
[1763641930836,0.112,3023.7,3023.3,0.97105745]
[1763641931363,0.42128851,3023.7,3023.3,0.97105745]
[1763641932685,0.42128851,3023.7,3023.3,4.27869532]
[1763641933536,0.112,3023.7,3023.6,0.4559]
[1763641933760,0.112,3023.7,3023.4,0.4784]
[1763641934067,0.42128851,3023.7,3023.3,3.30763787]
[1763641934655,0.0868,3023.4,3023.0,0.001]
[1763641934860,0.0859,3023.1,3023.0,0.001]
[1763641935342,0.39518851,3023.1,3023.0,0.001]
[1763641936378,0.0859,3023.1,3023.0,0.001]
[1763641936548,3.70305129,3023.1,3023.0,0.001]
[1763641936943,0.39518851,3023.1,3023.0,0.001]
[1763641937269,0.0859,3023.1,3023.0,0.001]
[1763641937872,0.30972702,3023.1,3023.0,0.9353]
[1763641938041,0.112,3023.3,3023.0,1.64400633]
[1763641938365,0.112,3023.3,3023.1,0.6771]
[1763641938572,0.112,3023.3,3023.2,0.4559]
[1763641938770,0.112,3023.3,3023.2,4.24205337]
[1763641938970,0.112,3023.3,3023.2,5.090168]
[1763641939768,0.112,3023.3,3023.2,5.11299685]
[1763641939968,0.112,3023.6,3023.2,8.39792137]
[1763641940156,0.002,3024.0,3023.6,0.4559]
[1763641940157,0.30970924,3023.7,3023.6,0.4559]
[1763641940362,0.112,3023.7,3023.3,0.4784]
[1763641940569,0.112,3023.7,3023.6,0.4559]
[1763641940940,0.112,3023.7,3023.6,0.9343]
[1763641941396,0.1988,3023.7,3023.2,3.30770491]
[1763641941598,0.42170924,3023.7,3023.6,0.4559]
[1763641941883,0.112,3023.7,3023.6,0.4559]
[1763641944181,0.1112,3023.7,3023.6,0.4559]
[1763641944376,0.1112,3023.7,3023.4,3.30752123]
[1763641944579,0.1112,3023.7,3023.3,0.4784]
[1763641944782,0.1112,3023.7,3023.2,3.30771811]
[1763641944783,0.88323417,3023.7,3023.2,3.30771811]
[1763641944984,0.30963417,3023.6,3023.2,4.43912447]
[1763641945156,0.30963417,3023.6,3023.2,1.13140636]
[1763641945362,0.35097561,3023.6,3023.2,1.13140636]
[1763641946197,0.002,3024.0,3023.6,0.4559]
[1763641946363,0.002,3024.0,3023.9,6.60766332]
[1763641946694,0.002,3024.0,3023.9,7.26842965]
[1763641946904,0.002,3024.0,3023.9,11.05381731]
[1763641947396,0.0888,3024.0,3023.5,0.4784]
[1763641947690,0.1569,3023.9,3023.4,3.30753456]
[1763641948046,0.04333597,3024.0,3023.5,0.4784]
[1763641948471,0.04333597,3024.0,3023.4,3.30753456]
[1763641948882,0.04333597,3024.0,3023.7,4.73192368]
[1763641949050,0.35288191,3024.0,3023.7,4.73192368]
[1763641949782,0.04333597,3024.0,3023.7,4.73192368]
[1763641950984,0.04333597,3024.0,3023.4,6.61506912]
[1763641951184,0.35288191,3024.0,3023.5,0.75220618]
[1763641951485,0.04333597,3024.0,3023.5,0.75220618]
[1763641951660,0.04333597,3024.0,3023.6,0.4813]
[1763641952045,0.002,3024.0,3023.6,0.4813]
[1763641952471,0.002,3024.0,3023.9,0.4884]
[1763641952682,0.113,3024.0,3023.9,0.4884]
[1763641952886,0.113,3024.0,3023.9,0.9697]
[1763641953053,0.113,3024.0,3023.9,4.27668766]
[1763641953453,0.113,3024.0,3023.9,3.30698766]
[1763641953676,0.113,3024.0,3023.9,3.79538766]
[1763641953866,0.113,3024.0,3023.9,4.27668766]
[1763641954165,0.002,3024.0,3023.9,5.03506588]
[1763641956687,0.0848,3024.0,3023.9,4.06536588]
[1763641956990,0.002,3024.0,3023.9,4.55376588]
[1763641957297,0.002,3024.0,3023.9,11.18655935]
[1763641957481,0.002,3024.0,3023.9,12.09355199]
[1763641962100,0.002,3024.1,3023.9,15.40053965]
[1763641962304,0.002,3024.1,3024.0,2.44406464]
[1763641962903,0.002,3024.1,3024.0,8.87463784]
[1763641963371,0.002,3024.1,3024.0,5.29984294]
[1763641963689,0.002,3024.1,3024.0,5.75094294]
[1763641964570,0.002,3024.1,3024.0,5.29984294]
[1763641964759,0.002,3024.1,3023.9,4.21387469]
[1763641964963,0.002,3024.1,3024.0,0.904]
[1763641965492,0.002,3024.1,3024.0,4.2108783]
[1763641965811,0.002,3024.1,3024.0,4.23368527]
[1763641965984,0.002,3024.1,3024.0,4.2108783]
[1763641966163,0.002,3024.1,3024.0,5.0533536]
[1763641966769,0.002,3024.1,3024.0,4.6022536]
[1763641967099,0.002,3024.1,3024.0,5.0533536]
[1763641967815,0.002,3024.1,3024.0,11.4839268]
[1763641968172,0.0012,3024.1,3024.0,11.4839268]
[1763641968378,0.0012,3024.1,3024.0,12.39091944]
[1763641968891,0.0012,3024.1,3024.0,12.79642344]
[1763641969090,0.002,3024.4,3024.1,1.31249664]
[1763641969287,0.002,3024.4,3024.3,1.35989264]
[1763641969610,0.1552,3025.4,3024.3,1.35989264]
[1763641969611,0.30909616,3025.5,3024.4,0.405504]
[1763641969768,0.1494,3026.0,3025.1,6.4305732]
[1763641969769,0.4805,3025.8,3025.1,6.4305732]
[1763641970262,0.4805,3025.8,3025.1,6.6132732]
[1763641970599,0.4805,3025.8,3025.1,7.0643732]
[1763641971468,0.4805,3025.8,3025.2,6.61113314]
[1763641971872,0.78959616,3025.8,3025.2,6.61113314]
[1763641972112,0.78959616,3025.8,3025.2,3.30556657]
[1763641972311,0.4805,3025.7,3025.1,9.73620049]
[1763641972685,0.4805,3025.7,3025.1,13.04187633]
[1763641972886,0.0688,3025.2,3024.9,3.30578692]
[1763641973401,0.4748,3025.0,3024.9,4.21277956]
[1763641974422,0.0744,3025.4,3024.9,4.21277956]
[1763641974920,0.0744,3025.4,3024.9,7.51867396]
[1763641975343,0.111,3025.4,3024.9,7.51867396]
[1763641975522,0.111,3025.4,3024.9,8.27054136]
[1763641975820,0.111,3025.4,3025.0,0.4511]
[1763641976318,0.111,3025.4,3024.9,8.27054136]
[1763641979145,0.111,3025.4,3025.0,0.4511]
[1763641979513,0.111,3025.4,3025.3,0.4529]
[1763641980037,0.111,3025.4,3025.3,4.20945731]
[1763641980548,0.111,3025.4,3025.3,3.30545731]
[1763641980751,0.0688,3025.4,3025.2,3.30552563]
[1763641980923,0.4764,3025.7,3025.0,3.30575942]
[1763641980924,0.0048,3025.3,3025.0,3.30575942]
[1763641981127,0.0048,3025.3,3025.0,10.88619975]
[1763641981329,0.111,3025.8,3025.2,0.4529]
[1763641981527,0.111,3025.8,3025.2,4.694]
[1763641981936,0.111,3025.8,3025.3,6.61091462]
[1763641982119,0.111,3025.8,3025.3,7.06201462]
[1763641982320,0.45804679,3026.0,3025.3,6.61091462]
[1763641982548,0.111,3025.9,3025.3,7.06201462]
[1763641982960,0.5915,3025.9,3025.3,6.61091462]
[1763641983222,0.1494,3026.0,3025.4,0.4511]
[1763641983542,1.59383793,3026.8,3025.4,0.4511]
[1763641983543,0.111,3026.4,3025.9,0.4529]
[1763641983742,0.111,3026.4,3025.9,0.904]
[1763641983743,0.41965435,3026.4,3025.9,0.904]
[1763641983930,0.41965435,3026.4,3026.0,6.60938532]
[1763641984133,0.002,3026.2,3026.0,6.60938532]
[1763641984669,0.002,3026.2,3026.1,8.82976984]
[1763641985934,0.002,3026.2,3026.1,12.13435329]
[1763641987848,0.30798825,3027.5,3026.2,1.31249664]
[1763641988048,1.06141882,3028.2,3027.4,6.8834732]
[1763641988049,0.17269452,3028.2,3027.4,6.8834732]
[1763641988285,0.4741,3028.1,3026.5,0.90699264]
[1763641988505,0.04128137,3028.0,3026.2,7.82986584]
[1763641988662,0.6313,3027.9,3026.2,7.82986584]
[1763641989001,0.405504,3027.7,3025.8,3.49038603]
[1763641989282,0.405504,3027.5,3025.8,6.79529712]
[1763641989480,0.30761692,3027.5,3025.9,0.4923]
[1763641989701,0.4741,3027.4,3025.9,1.39929264]
[1763641989847,6.60654708,3027.3,3026.1,0.90699264]
[1763641990052,0.3489092,3027.2,3025.8,0.90699264]
[1763641990264,0.8230092,3027.2,3025.8,0.90699264]
[1763641990462,0.0752,3025.9,3025.3,0.1855]
[1763641990649,0.0752,3025.9,3025.2,6.9228732]
[1763641990650,0.1539,3025.9,3025.2,3.30546786]
[1763641991290,0.1539,3025.9,3025.3,0.90699264]
[1763641991492,0.1539,3025.9,3025.2,6.61103443]
[1763641991697,0.1539,3025.9,3025.3,0.90699264]
[1763641991992,0.1539,3025.9,3025.4,3.30534805]
[1763641992151,0.1531,3025.9,3025.4,3.30534805]
[1763641992346,0.6272,3025.9,3025.4,3.30534805]
[1763641992583,0.6272,3025.9,3025.2,3.30552804]
[1763641993148,3.9320734,3025.9,3025.1,3.3056571]
[1763641993349,0.4741,3025.8,3025.1,3.3056571]
[1763641994451,0.4741,3025.8,3025.0,0.90699264]
[1763641994851,0.0775,3025.1,3024.3,0.6778]
[1763641995078,0.112,3025.3,3024.4,1.21543732]
[1763641995279,0.112,3025.3,3024.5,3.30631432]
[1763641995481,0.1531,3025.9,3025.2,0.659]
[1763641995681,0.1531,3025.9,3025.3,0.02276749]
[1763641995847,0.112,3025.8,3025.2,0.659]
[1763641996056,0.112,3025.8,3025.2,1.1513]
[1763641996255,0.4741,3026.7,3025.7,6.9040732]
[1763641996583,0.112,3026.4,3025.8,3.77837989]
[1763641996887,0.112,3026.4,3025.8,7.08329098]
[1763641997772,0.4741,3026.7,3025.8,7.08329098]
[1763641997966,0.112,3026.6,3025.8,7.08329098]
[1763641998161,0.112,3026.6,3025.8,7.57559098]
[1763641998488,0.112,3026.6,3026.0,6.60938532]
[1763641999089,0.112,3026.7,3026.1,1.58479264]
[1763641999583,0.112,3026.7,3026.1,0.90699264]
[1763641999756,0.5861,3026.7,3026.0,3.30469266]
[1763641999957,0.5861,3026.7,3025.9,5.03584716]
[1763641999958,0.0744,3026.1,3025.9,0.90699264]
[1763642000287,0.0744,3026.1,3025.8,3.30491109]
[1763642000588,0.0744,3026.1,3025.6,6.61025912]
[1763642001582,0.0744,3026.1,3025.6,7.10255912]
[1763642002086,0.4701,3026.4,3025.6,7.10255912]
[1763642002890,0.4701,3026.4,3025.6,10.40768868]
[1763642003066,0.002,3026.2,3025.6,10.40768868]
[1763642003264,0.002,3026.2,3025.6,11.44855755]
[1763642004284,0.002,3026.2,3026.1,0.659]
[1763642004600,0.002,3026.2,3026.1,3.30458345]
[1763642004904,0.0764,3026.2,3026.0,6.60935167]
[1763642005481,0.0764,3026.2,3026.0,3.30465901]
[1763642005679,0.0764,3026.2,3026.0,6.60935167]
[1763642005981,0.0764,3026.2,3026.0,3.30465901]
[1763642006503,0.0744,3026.1,3025.8,3.30491109]
[1763642006688,0.0744,3026.1,3025.8,6.60982218]
[1763642007069,0.0744,3026.1,3025.8,3.30491109]
[1763642007070,0.0047,3025.9,3025.8,3.30491109]
[1763642007894,0.0047,3025.9,3025.5,0.001]
[1763642007895,0.7462,3025.9,3025.5,0.001]
[1763642008077,0.0054,3025.6,3025.5,0.001]
[1763642008565,0.4795,3025.6,3025.5,0.001]
[1763642008960,0.0054,3025.6,3025.5,0.001]
[1763642010811,0.4579,3025.6,3025.5,0.001]
[1763642011599,0.002,3026.2,3025.5,0.4578]
[1763642011799,0.4525,3026.1,3025.5,0.001]
[1763642012306,0.002,3026.2,3026.0,0.4568]
[1763642012504,0.002,3026.2,3025.5,0.001]
[1763642012801,0.002,3026.2,3025.6,1.40659264]
[1763642013005,0.002,3026.2,3025.7,1.1323309]
[1763642013202,0.002,3026.2,3025.8,0.4996]
[1763642013504,0.002,3026.2,3025.7,1.1323309]
[1763642014704,0.002,3026.2,3025.9,6.60960374]
[1763642015071,0.002,3026.2,3025.9,3.30480187]
[1763642015407,0.002,3026.2,3025.9,6.60960374]
[1763642016107,0.0012,3026.2,3025.9,6.60960374]
[1763642016489,0.0012,3026.2,3025.9,3.30480187]
[1763642016706,0.0012,3026.2,3025.7,3.30502032]
[1763642017597,0.79545651,3026.2,3025.7,3.30502032]
[1763642017827,0.4537,3026.2,3025.7,3.30502032]
[1763642018001,0.489,3025.8,3025.7,3.30502032]
[1763642018198,0.489,3025.8,3025.6,3.30511215]
[1763642018516,0.0015,3025.7,3025.6,3.30511215]
[1763642018717,0.473,3025.7,3025.5,0.001]
[1763642018910,0.0764,3025.6,3025.5,0.001]
[1763642019909,0.112,3025.8,3025.5,0.4933]
[1763642020109,0.112,3025.8,3025.5,0.9586]
[1763642020508,0.31052763,3026.2,3025.7,0.4923]
[1763642020725,0.31052763,3026.2,3025.8,6.60982218]
[1763642020726,0.1132,3026.2,3025.8,6.60982218]
[1763642022319,0.5847,3026.2,3025.8,6.60982218]
[1763642022535,0.30932638,3026.1,3025.8,6.60982218]
[1763642022737,0.30932638,3026.1,3025.5,0.001]
[1763642022738,0.2315,3025.9,3025.5,0.001]
[1763642023042,0.30932638,3026.0,3025.5,1.13186041]
[1763642023224,0.1132,3026.2,3025.5,1.59716041]
[1763642024005,0.1132,3026.2,3025.6,0.4653]
[1763642024834,0.1132,3026.2,3025.7,6.61004064]
[1763642025239,0.42252638,3026.2,3025.7,6.61004064]
[1763642025436,0.1132,3026.2,3025.7,6.61004064]
[1763642025629,0.42252638,3026.2,3025.7,7.07534064]
[1763642025813,0.1132,3026.2,3025.7,7.07534064]
[1763642026018,0.42252638,3026.2,3025.7,7.07534064]
[1763642026260,0.42252638,3026.2,3025.8,1.94503843]
[1763642026261,0.0012,3026.2,3025.8,1.94503843]
[1763642026555,0.1132,3026.2,3025.8,2.41033843]
[1763642026753,0.1132,3026.2,3026.0,6.60938532]
[1763642028841,0.0012,3026.2,3026.0,6.60938532]
[1763642029336,0.0012,3026.2,3026.1,1.1428]
[1763642029538,0.0012,3026.2,3026.1,2.53232586]
[1763642031034,0.0012,3026.2,3026.1,5.83690931]
[1763642033657,0.0012,3026.2,3026.1,6.74390195]
[1763642037862,0.30912771,3027.2,3026.2,0.90699264]
[1763642038053,0.112,3027.4,3026.6,6.6353733]
[1763642038223,0.112,3027.4,3026.7,0.66353733]
[1763642038423,0.89262771,3027.4,3026.7,0.66353733]
[1763642038667,0.30912771,3027.3,3026.7,0.66353733]
[1763642038868,0.30912771,3027.3,3026.8,6.60763842]
[1763642039356,0.30891506,3027.3,3026.8,6.60763842]
[1763642039948,0.4715,3027.3,3026.8,6.60763842]
[1763642040354,0.0777,3026.9,3026.8,3.30381921]
[1763642040767,0.0777,3026.9,3026.3,3.30432764]
[1763642040768,0.2304,3026.9,3026.3,3.30432764]
[1763642041058,0.4668,3026.8,3026.3,11.9223005]
[1763642041845,0.002,3027.3,3026.4,0.4653]
[1763642042045,0.002,3027.3,3026.8,0.4923]
[1763642043069,0.002,3027.3,3026.9,6.60742012]
[1763642045060,0.4735,3027.3,3026.7,6.60785674]
[1763642045267,0.0769,3027.0,3026.7,6.60785674]
[1763642045730,0.0769,3026.8,3026.7,3.30392837]
[1763642045929,0.4715,3027.2,3026.7,6.60785674]
[1763642046174,0.002,3027.3,3026.7,10.37708511]
[1763642046330,0.002,3027.3,3026.8,2.11731584]
[1763642047148,0.002,3027.3,3027.2,0.6775]
[1763642047567,0.002,3027.3,3027.2,1.1428]
[1763642049069,0.09,3027.3,3027.1,6.60698358]
[1763642049940,0.002,3027.3,3027.2,0.4974]
[1763642050139,0.002,3027.3,3027.2,1.43287543]
[1763642050451,0.002,3027.3,3027.2,1.89967543]
[1763642050769,0.002,3027.3,3027.2,2.80666807]
[1763642051150,0.002,3027.3,3027.2,6.11005073]
[1763642051877,0.002,3027.3,3027.2,6.13277031]
[1763642052245,0.002,3027.3,3027.2,6.11005073]
[1763642057868,0.002,3027.3,3027.2,6.51555473]
[1763642058106,0.002,3027.3,3027.2,6.62755473]
[1763642058307,0.6138,3028.4,3027.3,0.405504]
[1763642058504,0.1535,3028.4,3027.8,6.1430733]
[1763642058926,0.1535,3028.4,3028.3,4.71687734]
[1763642059200,0.1535,3028.4,3028.3,8.01906008]
[1763642059503,0.5723,3028.8,3028.3,11.32124282]
[1763642059664,0.5723,3028.8,3028.7,4.71687734]
[1763642060065,0.17260869,3029.5,3028.7,10.39795468]
[1763642060305,0.17260869,3029.5,3029.4,9.43375468]
[1763642060712,0.17260869,3029.5,3029.4,4.71687734]
[1763642060713,0.26060869,3029.5,3029.4,4.71687734]
[1763642060916,0.71720869,3029.5,3028.5,6.12704377]
[1763642061215,0.0046,3028.9,3028.7,6.60349324]
[1763642061668,0.4603,3029.3,3028.7,6.60349324]
[1763642063165,1.05979264,3030.4,3028.7,9.90523986]
[1763642063482,0.4603,3029.6,3028.7,6.60349324]
[1763642064066,0.4603,3029.6,3028.7,9.90523986]
[1763642064297,0.4595,3029.6,3028.7,9.90523986]
[1763642066787,0.613,3030.0,3028.9,6.12704377]
[1763642066989,0.725,3030.0,3028.9,6.23904377]
[1763642067193,0.1528,3030.4,3029.3,6.12704377]
[1763642067392,0.1528,3030.8,3029.9,0.6806]
[1763642067575,0.6131,3030.8,3029.9,0.6806]
[1763642067897,0.71799575,3030.7,3030.1,6.12704377]
[1763642068282,0.71799575,3030.7,3030.2,0.112]
[1763642068283,0.25769575,3030.7,3030.2,0.112]
[1763642068827,0.25769575,3030.7,3030.3,6.6000066]
[1763642069108,0.75199575,3030.7,3030.3,6.6000066]
[1763642069288,0.25769575,3030.7,3030.3,6.6000066]
[1763642069606,0.25769575,3030.7,3030.1,6.12704377]
[1763642069607,0.4509,3030.4,3030.1,3.30020707]
[1763642069809,0.0965,3030.6,3029.7,6.12704377]
[1763642069810,0.0965,3030.6,3029.8,6.60109578]
[1763642070012,0.25769575,3030.7,3029.8,10.38824367]
[1763642070179,0.25769575,3030.7,3029.9,1.39359264]
[1763642070605,0.25769575,3030.7,3030.0,0.4866]
[1763642070904,0.25769575,3030.7,3030.1,6.60044222]
[1763642071108,0.25769575,3030.7,3030.1,12.72748599]
[1763642071305,0.25769575,3030.7,3030.2,0.4866]
[1763642071507,0.25769575,3030.7,3030.1,12.72748599]
[1763642071713,0.25769575,3030.7,3030.1,3.30022111]
[1763642071875,0.75199575,3030.7,3030.1,6.71244222]
[1763642072579,0.25769575,3030.7,3030.1,6.60044222]
[1763642072794,0.25769575,3030.7,3030.1,6.71244222]
[1763642073013,0.25769575,3030.7,3030.1,3.41222111]
[1763642073226,0.4943,3030.6,3030.1,6.60044222]
[1763642073424,0.0535,3030.2,3029.4,3.30098369]
[1763642073628,0.4943,3030.6,3029.5,0.90699264]
[1763642073929,0.4943,3030.5,3029.5,0.90699264]
[1763642074389,0.6063,3030.5,3029.5,0.90699264]
[1763642074822,3.90619139,3030.5,3029.6,6.60153154]
[1763642075224,0.4943,3030.4,3029.6,6.60153154]
[1763642075537,0.2044,3029.7,3029.0,1.39359264]
[1763642075695,0.2044,3029.7,3029.2,0.112]
[1763642075896,0.1519,3029.9,3029.2,0.112]
[1763642076220,0.1519,3029.9,3029.2,1.50559264]
[1763642076422,0.6462,3029.9,3029.2,0.90699264]
[1763642076925,0.6462,3029.9,3029.2,3.30117455]
[1763642077131,0.6462,3029.9,3029.1,0.1951]
[1763642077132,0.0535,3029.3,3029.1,3.30125728]
[1763642077722,0.0049,3029.2,3028.7,3.30172085]
[1763642077893,0.4943,3029.8,3028.7,6.60346747]
[1763642078093,0.4943,3029.8,3028.8,0.90699264]
[1763642078388,0.4943,3029.8,3028.7,6.60346747]
[1763642078844,0.4943,3029.8,3028.9,6.6030572]
[1763642079195,0.4943,3029.8,3028.9,7.0585572]
[1763642079514,0.1519,3029.9,3028.9,13.18560097]
[1763642079828,0.4724,3029.8,3028.9,12.73010097]
[1763642081243,0.4724,3029.8,3028.9,13.18560097]
[1763642081439,0.4724,3029.8,3028.9,16.48712957]
[1763642082155,0.4724,3029.8,3028.9,13.18560097]
[1763642082538,0.4724,3029.8,3028.9,16.48712957]
[1763642082737,0.2639,3029.9,3029.0,0.47816458]
[1763642082942,0.1519,3029.9,3029.1,1.65097942]
[1763642083143,0.112,3030.0,3029.3,7.03403641]
[1763642083452,0.112,3030.0,3029.4,0.4555]
[1763642083839,0.112,3030.0,3029.3,7.03403641]
[1763642083840,0.1519,3029.9,3029.3,7.03403641]
[1763642084041,0.1519,3029.9,3029.3,0.90699264]
[1763642084240,0.0752,3029.4,3029.3,0.90699264]
[1763642084444,0.1519,3029.9,3029.3,0.90699264]
[1763642084750,0.112,3030.0,3029.4,0.4555]
[1763642084953,0.1519,3030.1,3029.4,0.4555]
[1763642085252,0.1519,3030.1,3029.5,6.60174946]
[1763642086152,0.6243,3030.1,3029.5,6.60174946]
[1763642086452,0.1519,3030.1,3029.5,6.60174946]
[1763642086623,0.112,3030.2,3029.5,7.01328594]
[1763642086953,0.112,3030.2,3029.6,0.4555]
[1763642087265,0.2639,3030.3,3029.7,6.60131366]
[1763642087446,0.57182936,3030.3,3029.7,6.60131366]
[1763642087649,0.1519,3030.3,3029.7,6.60131366]
[1763642087823,0.1519,3030.3,3029.7,7.67823615]
[1763642088153,0.1511,3030.3,3029.7,11.43439298]
[1763642088361,0.70956449,3030.6,3029.7,11.43439298]
[1763642088558,0.36969575,3030.7,3029.8,0.4555]
[1763642089028,0.36969575,3030.7,3029.7,11.09089298]
[1763642089029,0.4724,3030.6,3029.7,7.67823615]
[1763642089553,0.112,3030.6,3029.8,1.28007362]
[1763642089854,0.4724,3030.5,3029.8,0.82457362]
[1763642092262,0.1503,3029.8,3028.8,2.17702001]
[1763642092568,3.92326671,3029.8,3028.8,0.79185932]
[1763642092728,3.92326671,3029.8,3028.7,6.71549324]
[1763642092930,0.4724,3029.7,3028.8,0.90699264]
[1763642093126,0.1511,3030.0,3029.0,9.90425883]
[1763642093367,0.1511,3030.0,3029.1,1.20909264]
[1763642093666,0.1511,3030.0,3029.1,1.66459264]
[1763642093966,0.1511,3030.0,3029.2,1.61238515]
[1763642094826,3.96509214,3030.0,3029.2,1.26888515]
[1763642095025,0.66475412,3030.0,3029.2,0.112]
[1763642095225,0.66475412,3030.0,3029.3,3.30109266]
[1763642095426,0.66475412,3030.0,3029.3,6.60218532]
[1763642095924,0.0745,3029.4,3029.1,6.60258418]
[1763642097153,0.4721,3029.2,3028.3,3.49222335]
[1763642097469,3.41310039,3029.3,3028.4,0.90699264]
[1763642097758,0.4724,3029.2,3028.3,3.30212335]
[1763642097958,0.4724,3029.2,3028.6,0.001]
[1763642098776,0.2305,3028.7,3028.6,0.001]
[1763642098981,1.1836875,3029.2,3028.6,0.001]
[1763642099269,0.2305,3028.7,3028.6,0.001]
[1763642099882,0.112,3028.9,3028.6,0.001]
[1763642101443,0.1545,3029.4,3028.8,0.4792]
[1763642101656,0.112,3029.4,3028.8,0.4792]
[1763642101896,0.1545,3029.7,3029.3,0.4792]
[1763642102196,0.1511,3030.0,3029.3,1.1248]
[1763642102363,0.112,3029.9,3029.3,1.1248]
[1763642102746,0.112,3029.9,3029.3,0.6693]
[1763642103143,0.112,3029.9,3029.4,6.60196738]
[1763642103360,0.2631,3030.2,3029.5,0.4555]
[1763642104153,0.112,3030.2,3029.5,0.4555]
[1763642104782,0.112,3030.3,3029.5,0.4555]
[1763642105355,0.112,3030.3,3029.6,6.60153154]
[1763642105976,0.25769575,3030.7,3030.2,0.6693]
[1763642106496,0.25769575,3030.7,3030.6,0.4792]
[1763642106676,0.25769575,3030.7,3030.2,1.09709264]
[1763642106879,0.25769575,3030.7,3030.3,0.75058883]
[1763642107087,0.25769575,3030.7,3030.2,0.6456]
[1763642107290,0.25769575,3030.7,3030.1,6.60044222]
[1763642107869,0.25769575,3030.7,3030.1,3.30022111]
[1763642108164,0.25769575,3030.7,3030.2,0.4885]
[1763642109475,0.25769575,3030.7,3030.3,6.6000066]
[1763642109699,0.25769575,3030.7,3030.6,0.4845]
[1763642110194,0.25769575,3030.7,3030.6,0.973]
[1763642111605,0.25769575,3030.7,3030.6,4.27267663]
[1763642111792,0.25769575,3030.7,3030.6,6.35589236]
[1763642111994,1.18109575,3030.7,3029.4,6.60196738]
[1763642112193,0.9226,3030.6,3029.5,1.59739938]
[1763642112394,0.9226,3030.6,3029.7,0.6]
[1763642112596,0.25769575,3030.7,3029.8,0.02264278]
[1763642112775,0.25769575,3030.7,3029.8,0.517504]
[1763642112976,0.25769575,3030.7,3029.9,0.20244966]
[1763642113176,0.25769575,3030.7,3030.0,0.405504]
[1763642113795,0.25769575,3030.7,3030.6,0.4106]
[1763642114817,0.25769575,3030.7,3030.6,8.2489883]
[1763642115314,0.25769575,3030.7,3030.6,8.1369883]
[1763642115510,0.25769575,3030.7,3030.6,9.06268713]
[1763642115712,0.25769575,3030.7,3030.6,2.24329147]
[1763642115912,0.25769575,3030.7,3030.6,4.72926927]
[1763642116209,0.25769575,3030.7,3030.6,4.61726927]
[1763642117121,0.25769575,3030.7,3030.6,5.02786927]
[1763642117328,0.25769575,3030.7,3030.5,0.112]
[1763642117625,0.25769575,3030.7,3030.6,6.83692758]
[1763642117834,0.25769575,3030.7,3030.6,10.80886905]
[1763642118723,0.1545,3032.1,3030.6,24.00757557]
[1763642118896,0.4623,3032.0,3030.6,24.00757557]
[1763642119098,0.4623,3032.0,3030.6,17.40822231]
[1763642119311,0.4623,3032.0,3030.9,0.6]
[1763642119610,0.04122827,3031.9,3030.7,0.90699264]
[1763642119816,6.59652362,3031.9,3030.6,6.71135326]
[1763642120119,0.4623,3031.8,3030.6,6.71135326]
[1763642120312,0.4623,3031.8,3030.6,10.01102989]
[1763642121088,0.112,3031.7,3030.6,6.59935326]
[1763642121490,0.4623,3031.6,3030.6,6.59935326]
[1763642122020,3.76091432,3031.6,3030.6,6.59935326]
[1763642122509,7.05952864,3031.6,3030.6,6.59935326]
[1763642122704,0.04123371,3031.5,3030.3,0.90699264]
[1763642122906,0.04123371,3031.5,3030.1,0.001]
[1763642123111,10.35811684,3031.6,3030.1,3.30114814]
[1763642123338,10.35811684,3031.6,3030.2,0.90699264]
[1763642123711,10.35811684,3031.6,3030.1,0.90799264]
[1763642123912,0.90699264,3031.5,3030.1,3.30122111]
[1763642124117,0.90699264,3031.3,3030.1,0.001]
[1763642124637,0.94822907,3031.3,3030.1,0.001]
[1763642124810,0.71270322,3031.2,3030.1,0.001]
[1763642125014,0.31933238,3031.1,3030.1,0.001]
[1763642125215,0.58529245,3031.1,3030.1,0.001]
[1763642126306,0.90699264,3030.9,3030.1,0.001]
[1763642128434,10.20593064,3030.8,3030.1,0.001]
[1763642128932,9.89837664,3030.8,3030.1,0.001]
[1763642129136,0.112,3030.7,3029.4,4.10896237]
[1763642129545,0.112,3030.7,3029.4,7.40994606]